Cogmind - Beta 13 @@@ ROGUE MODE // 2024.07.12 @ 15:50:19 Player: purzer Result: Self-destructed Performance ------------- Evolutions (2) 1000 Regions Visited (6) 1200 Robots Destroyed (16) 80 Value Destroyed (360) 360 Prototype IDs (1) 20 Alien Tech Used (0) 0 Bonus (311) 311 TOTAL SCORE: 2971 Bonus ------- High Alert Combat Kills 11 Aligned with FarCom 300 Cogmind --------- Core Integrity 319/550 Matter 121/300 Energy 55/100 System Corruption 0% Temperature Cool (0) Movement Core (250) Ox4 Location -8/Materials Parts ------- > --- POWER (2) -------- (None) > --- PROPULSION (2) --- (None) > --- UTILITY (3) ------ Targeting Computer > --- WEAPON (4) ------- Light EM Pulse Cannon Light EM Pulse Cannon EM Pulse Cannon > --- INVENTORY (5) ---- Huge Storage Unit Peak State ------------ > --- POWER ------------ Light Ion Engine > --- PROPULSION ------- Light Treads Light Treads > --- UTILITY ---------- Small Storage Unit Targeting Computer Supersonic Drone Bay > --- WEAPON ----------- EM Pulse Gun Assault Rifle Assault Rifle Grenade Launcher > --- INVENTORY -------- (None) [Rating: 17] Favorites ----------- Power Light Ion Engine Engine Light Ion Engine Propulsion Light Treads Treads Light Treads Utility Small Storage Unit Device Supersonic Drone Bay Storage Small Storage Unit Processor Targeting Computer Weapon Assault Rifle Energy Gun EM Pulse Gun Energy Cannon Light EM Pulse Cannon Ballistic Gun Assault Rifle Launcher Grenade Launcher Build | -11 -10 -9 -9 -9 -8 -8 ------- Run | Yrd Mat Mat Min Exi Min Mat Slots Evolved 4 | . . 2 . . . 2 Power 1 | . . . . . . 1 Propulsion . | . . . . . . . Utility 1 | . . 1 . . . . Weapon 2 | . . 1 . . . 1 Parts Attached 21 | 6 3 5 1 1 . 5 Power 2 | 1 . . 1 . . . Engine 2 | 1 . . 1 . . . Core . | . . . . . . . Reactor . | . . . . . . . Propulsion 2 | 2 . . . . . . Treads 2 | 2 . . . . . . Leg . | . . . . . . . Wheel . | . . . . . . . Hover . | . . . . . . . Flight . | . . . . . . . Utility 4 | 1 1 . . 1 . 1 Device 2 | . . . . 1 . 1 Storage 1 | 1 . . . . . . Processor 1 | . 1 . . . . . Hackware . | . . . . . . . Protection . | . . . . . . . Artifact . | . . . . . . . Weapon 13 | 2 2 5 . . . 4 Energy Gun 3 | . . 2 . . . 1 Energy Cannon 3 | . . . . . . 3 Ballistic Gun 4 | 2 1 1 . . . . Ballistic Cannon . | . . . . . . . Launcher 3 | . 1 2 . . . . Special Weapon . | . . . . . . . Impact Weapon . | . . . . . . . Slashing Weapon . | . . . . . . . Piercing Weapon . | . . . . . . . Special Melee Weapon . | . . . . . . . Unidentified Prototypes 1 | . . . . 1 . . Parts Lost 12 | . . 3 . . . 9 Power 2 | . . 1 . . . 1 Propulsion 2 | . . . . . . 2 Utility 2 | . . . . . . 2 Weapon 6 | . . 2 . . . 4 Highest Loss Streak 9 | . . 3 . . . 9 To Critical Strikes 1 | . . . . . . 1 Average Slot Usage (%) 90 | . 94 83 88 94 100 77 Engine 10 | . 14 7 11 11 11 7 Treads 22 | . 28 22 22 22 22 14 Device 4 | . . . . 5 11 14 Storage 10 | . 14 11 11 11 11 1 Processor 10 | . 8 11 11 11 11 9 Energy Gun 3 | . . 14 . . . 7 Ballistic Gun 21 | . 27 14 22 22 22 15 Launcher 6 | . . 3 11 11 11 6 Naked Turns . | . . . . . . . Heaviest Build 18 | 12 12 15 15 16 16 18 Greatest Support 40 | 40 40 40 40 40 40 40 Greatest Overweight (x) 1 | 1 . . . . . . Average Overweight (x) . | . . . . . . . Largest Inventory Capacity 8 | 8 8 8 8 8 8 8 Average Capacity 7 | 6 8 8 8 8 8 5 Most Carried 5 | 5 5 4 1 2 1 4 Average Carried 2 | 2 4 3 1 1 1 2 Final Capacity 8 | 8 8 8 8 8 8 5 Final Carried 5 | 2 5 2 1 1 1 1 Class Distribution -------------------- 44% | Gunner 31% | Mutant 23% | Skirmisher Dominant Class ---------------- Mutant | -10/Materials Gunner | -9/Materials Gunner | -9/Mines Gunner | -9/Exiles Skirmisher | -8/Mines Skirmisher | -8/Materials Resources | -11 -10 -9 -9 -9 -8 -8 ----------- Run | Yrd Mat Mat Min Exi Min Mat Matter Collected 428 | 234 41 33 . . . 120 Remotely . | . . . . . . . Salvage Created 322 | . 107 198 . . . 17 Parts 32 | . 14 17 . . . 1 Haulers Intercepted . | . . . . . . . Recyclers Shooed 1 | . . 1 . . . . Parts Field Recycled . | . . . . . . . Retrieved Matter . | . . . . . . . Parts Self-Destructed . | . . . . . . . Prevented . | . . . . . . . Kills | -11 -10 -9 -9 -9 -8 -8 ------- Run | Yrd Mat Mat Min Exi Min Mat Combat Hostiles Destroyed 13 | . 5 7 . . . 1 Guns 9 | . 3 5 . . . 1 AOE 4 | . 2 2 . . . . Classes Destroyed 5 | . 4 1 . . . . Worker 1 | . 1 . . . . . Builder 2 | . 1 1 . . . . Swarmer 7 | . 3 3 . . . 1 Grunt 4 | . 2 2 . . . . Sentry 2 | . . 2 . . . . Best Kill Streak 6 | . 3 6 . . . 1 Combat Bots Only 5 | . 3 5 . . . 1 Max Kills in Single Turn 2 | . 2 2 . . . 1 Gunslinging 1 | . 1 . . . . . Exploded 1 | . 1 1 . . . . Melee . | . . . . . . . Uniques/NPCs Destroyed . | . . . . . . . Combat | -11 -10 -9 -9 -9 -8 -8 -------- Run | Yrd Mat Mat Min Exi Min Mat Hostile Shots Fired 178 | . 19 52 . . . 107 Missed 55 | . 8 17 . . . 30 Damage Taken 1420 | . 99 552 . . . 769 Core 364 | . 11 122 . . . 231 Absorbed by Shields . | . . . . . . . Core Remaining (%) 88 | 100 95 . . . 69 . Volleys Fired 39 | . 11 21 . . . 7 Largest 3 | . 2 3 . . . 2 Hottest 100 | . 50 100 . . . 40 Shots Fired 93 | . 22 63 . . . 8 Gun 82 | . 18 56 . . . 8 Cannon . | . . . . . . . Launcher 11 | . 4 7 . . . . Special . | . . . . . . . Kinetic 49 | . 18 23 . . . 8 Thermal . | . . . . . . . Explosive 11 | . 4 7 . . . . Electromagnetic 33 | . . 33 . . . . Robot Hit Streak 10 | . 7 10 . . . 2 Robot Miss Streak 7 | . 3 7 . . . 2 Penetration Max . | . . . . . . . Secondary Targets 4 | . 1 3 . . . . Max Gunslinging Chain 1 | . 1 1 . . . . Shots Hit Robots 45 | . 10 31 . . . 4 Core Hits 22 | . 8 13 . . . 1 Critical Kills . | . . . . . . . Critical Parts Destroyed . | . . . . . . . Critical Strikes . | . . . . . . . Melee Attacks . | . . . . . . . Impact . | . . . . . . . Slashing . | . . . . . . . Piercing . | . . . . . . . Sneak Attacks . | . . . . . . . Combat Hostiles . | . . . . . . . Follow-up Attacks . | . . . . . . . Damage Inflicted 911 | . 302 559 . . . 50 Guns 461 | . 106 305 . . . 50 Cannons . | . . . . . . . Explosions 450 | . 196 254 . . . . Melee . | . . . . . . . Ramming . | . . . . . . . Kinetic 279 | . 106 123 . . . 50 Thermal . | . . . . . . . Explosive 450 | . 196 254 . . . . Electromagnetic 182 | . . 182 . . . . Impact . | . . . . . . . Slashing . | . . . . . . . Piercing . | . . . . . . . Highest Corruption . | . . . . . . . Average Corruption . | . . . . . . . Corruption Purged . | . . . . . . . Corruption Blocked . | . . . . . . . Overload Shots . | . . . . . . . Overflow Damage . | . . . . . . . Projectiles . | . . . . . . . Explosions . | . . . . . . . Melee . | . . . . . . . Knockbacks . | . . . . . . . Impact . | . . . . . . . Kinetic . | . . . . . . . Secondary . | . . . . . . . Self-Inflicted Damage 114 | . . 114 . . . . Shots 3 | . . 3 . . . . Rammed . | . . . . . . . Targets Rammed . | . . . . . . . Kicked . | . . . . . . . Crushed . | . . . . . . . Highest Temperature 210 | . 2 210 . . . 6 Average Temperature 75 | . 2 79 . . . 6 Received Heat Transfer 423 | . 36 180 . . . 207 Siege Activations . | . . . . . . . Robots Corrupted . | . . . . . . . Combat Hostiles . | . . . . . . . Parts Fried . | . . . . . . . Impact Corruptions . | . . . . . . . Robots Melted . | . . . . . . . Combat Hostiles . | . . . . . . . Parts Melted . | . . . . . . . Heat Transferred . | . . . . . . . Parts Sabotaged . | . . . . . . . Parts Stolen . | . . . . . . . Parts Stripped . | . . . . . . . Power Chain Reactions . | . . . . . . . Alert | -11 -10 -9 -9 -9 -8 -8 ------- Run | Yrd Mat Mat Min Exi Min Mat Peak Influence 406 | . 208 406 157 . . 10 Initial 157 | . . 87 157 . . . Average 89 | . 95 249 157 . . . Maximum Alert Level 2 | . 1 2 . . . . Low Security (%) 84 | 100 94 34 100 . 100 100 Level 1 13 | . 5 55 . . . . Level 2 2 | . . 10 . . . . Level 3 . | . . . . . . . Level 4 . | . . . . . . . Level 5 . | . . . . . . . High Security . | . . . . . . . Max Security . | . . . . . . . Squads Dispatched 2 | . 1 . . . . 1 Investigation . | . . . . . . . Extermination . | . . . . . . . Reinforcement 1 | . 1 . . . . . Assault . | . . . . . . . Garrison 1 | . . . . . . 1 Intercept . | . . . . . . . Searches Triggered . | . . . . . . . Construction Impeded . | . . . . . . . Haulers Reinforced . | . . . . . . . Active Scanning Responses . | . . . . . . . Cargo Convoy Interrupts . | . . . . . . . Stealth | -11 -10 -9 -9 -9 -8 -8 --------- Run | Yrd Mat Mat Min Exi Min Mat Distress Signals 1 | . . 1 . . . . Communications Jammed . | . . . . . . . Distress Signals . | . . . . . . . Times Spotted 27 | . 7 8 . . . 12 Peak Tracking Total 10 | . 2 6 . . . 10 Tactical Retreats 1 | . . 1 . . . . Traps | -11 -10 -9 -9 -9 -8 -8 ------- Run | Yrd Mat Mat Min Exi Min Mat Traps Triggered . | . . . . . . . Indirectly . | . . . . . . . Trap Hack Attempts . | . . . . . . . Triggered . | . . . . . . . Disarmed . | . . . . . . . Reprogrammed . | . . . . . . . Reused . | . . . . . . . Traps Extracted . | . . . . . . . Installed . | . . . . . . . Triggered . | . . . . . . . Machines | -11 -10 -9 -9 -9 -8 -8 ---------- Run | Yrd Mat Mat Min Exi Min Mat Machines Disabled 4 | . . 4 . . . . Max in Single Turn 2 | . . 2 . . . . Machines Repaired . | . . . . . . . Machines Dismantled . | . . . . . . . Machines Sabotaged . | . . . . . . . Overloaded Fab Kills . | . . . . . . . Hacking | -11 -10 -9 -9 -9 -8 -8 --------- Run | Yrd Mat Mat Min Exi Min Mat Machines Accessed 2 | . 2 . . . . . Terminals 2 | . 2 . . . . . Fabricators . | . . . . . . . Repair Stations . | . . . . . . . Recycling Units . | . . . . . . . Scanalyzers . | . . . . . . . Garrison Access . | . . . . . . . Total Hacks 6 | . 6 . . . . . Successful 5 | . 5 . . . . . Failed 1 | . 1 . . . . . Catastrophic . | . . . . . . . Database Lockouts . | . . . . . . . Manual 1 | . . . . 1 . . Terminals 6 | . 6 . . . . . Fabricators . | . . . . . . . Repair Stations . | . . . . . . . Recycling Units . | . . . . . . . Scanalyzers . | . . . . . . . Garrison Access . | . . . . . . . Terminal Hacks 5 | . 5 . . . . . Record 3 | . 3 . . . . . Maintenance Status 1 | . 1 . . . . . Zone Layout 1 | . 1 . . . . . Fabricator Hacks . | . . . . . . . Repair Station Hacks . | . . . . . . . Recycling Unit Hacks . | . . . . . . . Scanalyzer . | . . . . . . . Garrison Access Hacks . | . . . . . . . Unauthorized Hacks . | . . . . . . . Terminals . | . . . . . . . Fabricators . | . . . . . . . Repair Stations . | . . . . . . . Recycling Units . | . . . . . . . Scanalyzers . | . . . . . . . Garrison Access . | . . . . . . . Data Cores Recovered . | . . . . . . . Used . | . . . . . . . Hacking Detections 1 | . 1 . . . . . Full Trace Events . | . . . . . . . Feedback Events . | . . . . . . . Feedback Blocked . | . . . . . . . Robot Schematics Acquired . | . . . . . . . Robots Built . | . . . . . . . Authchips . | . . . . . . . Time . | . . . . . . . Total Robot Build Rating . | . . . . . . . Part Schematics Acquired . | . . . . . . . Parts Built . | . . . . . . . Authchips . | . . . . . . . Time . | . . . . . . . Total Part Build Rating . | . . . . . . . Parts Repaired . | . . . . . . . Time . | . . . . . . . Parts Recycled . | . . . . . . . Recycled Matter . | . . . . . . . Retrieved Matter . | . . . . . . . Retrieved Components . | . . . . . . . Parts Scanalyzed . | . . . . . . . Part Schematics Acquired . | . . . . . . . Parts Damaged . | . . . . . . . Bothacking | -11 -10 -9 -9 -9 -8 -8 ------------ Run | Yrd Mat Mat Min Exi Min Mat Used RIF Installer . | . . . . . . . Robots Hacked . | . . . . . . . Non-combat . | . . . . . . . Combat . | . . . . . . . Robot Hacks Applied . | . . . . . . . Relay Couplers Released . | . . . . . . . Fabnet Peak Effective % . | . . . . . . . Robots Rewired . | . . . . . . . Allies Hacked . | . . . . . . . Hacks Repelled . | . . . . . . . Allies | -11 -10 -9 -9 -9 -8 -8 -------- Run | Yrd Mat Mat Min Exi Min Mat Total Allies . | . . . . . . . Largest Group . | . . . . . . . Highest-Rated Group . | . . . . . . . Highest-Rated Ally . | . . . . . . . Total Orders . | . . . . . . . Ally Attacks . | . . . . . . . Total Damage . | . . . . . . . Kills . | . . . . . . . Allies Corrupted . | . . . . . . . Allies Melted . | . . . . . . . Intel | -11 -10 -9 -9 -9 -8 -8 ------- Run | Yrd Mat Mat Min Exi Min Mat Robot Analysis Total . | . . . . . . . Derelict Logs Recovered 1 | . . . 1 . . . Drone Launches 1 | . . . . 1 . . Drone Recoveries 1 | . . . . . . 1 Exploration | -11 -10 -9 -9 -9 -8 -8 ------------- Run | Yrd Mat Mat Min Exi Min Mat Turns Passed 1272 | 45 334 180 30 367 146 170 Spaces Moved 728 | 35 184 67 19 229 92 102 Core 40 | 22 . . . . . 18 Treads 688 | 13 184 67 19 229 92 84 Legs . | . . . . . . . Wheels . | . . . . . . . Hover . | . . . . . . . Flight . | . . . . . . . Fastest Speed 50 | 50 160 160 160 160 160 50 Average Speed 154 | 95 160 160 160 160 160 140 Slowest Speed 160 | 160 160 160 160 160 160 160 Overloaded Moves . | . . . . . . . Propulsion Burnouts . | . . . . . . . Robots Hopped . | . . . . . . . Cave-ins Triggered . | . . . . . . . Exploration Rate (%) 23 | 3 31 10 11 66 25 15 Regions Visited 6 Branch Regions 3 Pre-discovered Areas . | . . . . . . . Known Exits Taken . | . . . . . . . Unknown Exits Taken 6 | 1 1 1 1 1 1 . Scrap Searched . | . . . . . . . Spaces Dug . | . . . . . . . Terrain Destroyed 103 | . 33 70 . . . . Melee . | . . . . . . . Projectile . | . . . . . . . AOE 103 | . 33 70 . . . . Terrain Rammed . | . . . . . . . Walls Destroyed . | . . . . . . . Machines Disabled . | . . . . . . . Actions | -11 -10 -9 -9 -9 -8 -8 --------- Run | Yrd Mat Mat Min Exi Min Mat Total 798 | 45 201 92 19 230 91 120 Wait . | . . . . . . . Move 722 | 34 183 66 18 228 91 102 Hop . | . . . . . . . Pick Up 15 | 5 4 . . 1 . 5 Fast Attach 3 | 3 . . . . . . Attach 13 | 3 1 3 1 1 . 4 Detach . | . . . . . . . Swap 5 | . 2 2 . . . 1 Drop 1 | . . . . . . 1 Fire 39 | . 11 21 . . . 7 Melee . | . . . . . . . Ram . | . . . . . . . Kick . | . . . . . . . Crush . | . . . . . . . Escape Stasis . | . . . . . . . Rewire . | . . . . . . . Trap . | . . . . . . . Miscellaneous . | . . . . . . . Route ------- -11/Scrapyard -10/Materials -9/Materials -9/Mines -9/Exiles -8/Mines -8/Materials (discovered 2 exits: Fac x2) History --------- Turn | Location | Event 2 | -11/Scrapyard | Discovered new exit (range 16) 46 | -11/Scrapyard | Entered Materials 122 | -10/Materials | Discovered new exit (range 12) 305 | -10/Materials | Build established: Mutant 380 | -10/Materials | Entered another Materials area 380 | -9/Materials | Evolved 2 slots: Utility x1, Weapon x1 520 | -9/Materials | Discovered new exit (range 13) 558 | -9/Materials | Lost 3 parts (1p2w) 560 | -9/Materials | Entered Mines 579 | -9/Mines | Learned 4 Materials zone layouts 584 | -9/Mines | Deemed a non-threat by the Exiles lab entrance 584 | -9/Mines | Discovered new exit (range 5) 590 | -9/Mines | Entered Exiles 629 | -9/Exiles | Met 8R-AWN 656 | -9/Exiles | Met EX-HEX 707 | -9/Exiles | Met EX-BIN 728 | -9/Exiles | Aligned with FarCom system 730 | -9/Exiles | Given EX-Vault access code 766 | -9/Exiles | Opened EX-Vault 773 | -9/Exiles | Found Prototype Device 774 | -9/Exiles | Identified Supersonic Drone Bay 808 | -9/Exiles | Warned to stay clear of 0b10 Research branches 833 | -9/Exiles | Exiles lab attacked by MAIN.C 833 | -9/Exiles | Build established: Gunner 935 | -9/Exiles | Discovered new exit (range 14) 957 | -9/Exiles | Left Exiles lab with Supersonic Drone Bay 957 | -9/Exiles | Entered Mines 957 | -8/Mines | Accompanied by 1 ally 983 | -8/Mines | Discovered new exit (range 5) 1103 | -8/Mines | Entered Materials 1103 | -8/Materials | Accompanied by 1 ally 1103 | -8/Materials | Evolved 2 slots: Power x1, Weapon x1 1104 | -8/Materials | Identified exit to Factory 1248 | -8/Materials | Garrison activated, responded to threat 1273 | -8/Materials | Self-destructed Last Messages --------------- S-10 Pest destroyed. S-10 Pest calls for garrison reinforcements. ALERT: Activating Garrison Access M001. Sensor Array destroyed. Critical hit (Destroy). Lgt. Treads destroyed. S-10 Pest destroyed. Lgt. Ion Engine destroyed. Acquired 19 matter. R-06 Scavenger collects Flight Unit. R-06 Scavenger collects Lgt. Ion Engine. Critical hit (Burn: +37). R-06 Scavenger collects Flight Unit. Critical hit (Burn: +37). Acquired 20 matter. Assault Rifle destroyed. K-01 Serf cleans the Recycling Unit. Supersonic Drone Bay destroyed. K-01 Serf cleans the Recycling Unit. Acquired EM Pulse Cannon. Map ----- +----------------------------------------------------+ | ?????????????????????????????????????????????????? | | ?????????????????????????????????????????????????? | | ?????????????????????????????????????????????????? | | ?????????????????????????????????????????????????? | | ?????????????????????????????????????????????????? | | ?????????????????????????????????????????????????? | | ?????????????????????????????????????????????????? | | ?????????????????????????????????????????????????? | | ?????????????????????????????????????????????????? | | ???? ????????????????w???????????????????????????? | | ???# ????????????????????????????????????????????? | | ???# ????????????????????????????????????????????? | | ???+ ??????""????????????????????????????????????? | | ???# ?? ""????????????????????????????????????? | | ???# ?? "????????????????????????????????????? | | ???# ?? ?? #????????????????????????????????? | | ???# ?? ? #????????????????????????????????? | | ???# ?? " #????????????????????????????????? | | ???# """ """ #############????????????????????? | | ???+ """ """ # #????????????????????? | | ???# """ """ # """ #????????????????????? | | ???# "" "" # !! """ #????????????????????? | | ???# """ """ #"" ![ """ #????????????????????? | | ???# "" "" #"Y #????????????????????? | | ???# "" "" #"" s ss #????????????????????? | | ???# " " # k s@ #????????????????????? | | ???# ####/########????????????????????? | | ???# #?#gg #??????????????????????????? | | #### ### g #??????????????????????????? | | g #??????????????????????????? | | ######+#### g #??????????????????????????? | | # ##?????????????????????????? | | """"" # """ #?????????????????????????? | | """"" + "T" ####??????????????????????? | | """"" # % ???????????????????? | | # ! " ???????????????????? | | ########### " ???????????????????? | | #######???# ???????????????????? | | #???# """" #######???????????????????? | | #??"" """" #?????????????????????????? | | ]]= #?#"Y """" #?????????????????????????? | | == #?#"" #?????????????????????????? | | == #?### ! #?????????????????????????? | | #???# #?????????????????????????? | | #???######## #?????????????????????????? | | #??????????? #?????????????????????????? | | #??????????? ????+?????????????????????????? | | #######??????????????????????????????????????????? | | #????????????????????????????????????????????? | | [#????????????????????????????????????????????? | +----------------------------------------------------+ Best States ------------- Heat Dissipation 31 Energy Generation 10 Energy Capacity 125 Matter Stores 291 Matter Capacity 300 Sight Range 16 Robot Scan Range 14 Terrain Scan Density 10 Evasion (%) 50 Targeting Accuracy 5 Recoil Reduction 2 Item Schematics ----------------- None Robot Schematics ------------------ None Fabricated ------------ Nothing Alien Tech Used ----------------- None Achievements -------------- None Challenges ------------ None Game ------ Seed ZhirovKineticReactor Manual? 0 Play Time 00:13:12 Cumulative 2.7 hours Start 2024.07.12 @ 15:38:51 End 2024.07.12 @ 15:50:19 Sessions 1 Manual Loads 0 Difficulty Rogue Special Mode None Game No. 5 Rogue 5 Adventurer 0 Explorer 0 Win Type - Total 0 Types 0/0/0/0/0/0/0/0/0 Lore% 10 Gallery% 9 Achievement% 11 Wizard Run 0 Options --------- Layout 1 ASCII 0 Keyboard 0 Movement Mouse Keybinds 0 Fullscreen 1 Font 24/Smallcaps Map View 50x35 Zoom Use 0% Tactical HUD 0 Map Filters NONE Filters NONE Steam 1 RUN: cca918cc-48a8-4777-8357-e3252b16a412